fUSD/lending_fUSD_20260503
["ID","MTS","AMOUNT","RATE_DAILY","PERIOD"]
[421503509,1777771832000,-500.0,0.00011999,2]
[421503551,1777771838000,-500.0,0.00011999,2]
[421503553,1777771838000,-500.0,0.00011999,2]
[421503552,1777771838000,-500.0,0.00011999,2]
[421503554,1777771838000,-381.88388205,0.00011999,2]
[421503557,1777771838000,-829.67010334,0.00012,2]
[421503555,1777771838000,-2848.86701662,0.00012,2]
[421503556,1777771838000,-48993.48432967,0.00012,2]
[421503561,1777771838000,-497.7197701,0.00012,2]
[421503564,1777771838000,-337.20640305,0.00012,2]
[421503563,1777771838000,-1466.25518156,0.00012,2]
[421503559,1777771838000,-407.67194771,0.00012,2]
[421503560,1777771838000,-1624.93955303,0.00012,2]
[421503562,1777771838000,-545.85460464,0.00012,2]
[421503565,1777771838000,-5013.58772905,0.00012,2]
[421503558,1777771838000,-380.52932165,0.00012,2]
[421503695,1777771840000,-8854.03534562,0.00012,2]
[421503697,1777771840000,-8943.78386462,0.00012,2]
[421503698,1777771840000,-9077.54866152,0.00012,2]
[421503699,1777771840000,-1933.47872742,0.00012,2]
[421503696,1777771840000,-8947.21879473,0.00012,2]
[421503701,1777771841000,-2935.0,0.00012,2]
[421503717,1777771843000,-519.45202042,0.00012,2]
[421503713,1777771843000,-681.76212011,0.00012,2]
[421503712,1777771843000,-1250.10506771,0.00012,2]
[421503714,1777771843000,-3106.56940036,0.00012,2]
[421503715,1777771843000,-1203.55824115,0.00012,2]
[421503716,1777771843000,-5733.99841523,0.00012,2]
[421503718,1777771843000,-261.98000005,0.00012,2]
[421503720,1777771843000,-413.8295354,0.00012,2]
[421503721,1777771843000,-4069.77402337,0.00012,2]
[421503722,1777771843000,-35409.74475922,0.00012,2]
[421503723,1777771843000,-259220.78818044,0.00012,2]
[421503725,1777771843000,-5315.1,0.00012,2]
[421503719,1777771843000,-388.81814311,0.00012,2]
[421503754,1777771846000,-150.0,0.00013767,2]
[421503762,1777771846000,-150.0,0.00014195,2]
[421503757,1777771846000,-150.0,0.00013951,2]
[421503759,1777771846000,-3157.88,0.00014096,2]
[421503760,1777771846000,-694.63,0.00014106,2]
[421503765,1777771846000,-300.0,0.000143,2]
[421503764,1777771846000,-300.0,0.000143,2]
[421503766,1777771846000,-300.0,0.000143,2]
[421503768,1777771846000,-250.0,0.000143,2]
[421503767,1777771846000,-300.0,0.000143,2]
[421503770,1777771846000,-150.0,0.00014318,2]
[421503763,1777771846000,-150.0,0.00014226,2]
[421503758,1777771846000,-150.0,0.00014042,2]
[421503771,1777771846000,-500.0,0.00014343,2]
[421503755,1777771846000,-150.0,0.00013859,2]
[421503752,1777771846000,-150.0,0.00013706,2]
[421503753,1777771846000,-3157.88,0.0001376,2]
[421503751,1777771846000,-166.66,0.00013699,2]
[421503750,1777771846000,-150.0,0.00013675,2]
[421503749,1777771846000,-150.0,0.00013584,2]
[421503748,1777771846000,-3157.88,0.00013425,2]
[421503746,1777771846000,-656910.46273501,0.00012,2]
[421503747,1777771846000,-9165.51825047,0.00013325,2]
[421503745,1777771846000,-14293.0,0.00012,2]
[421503744,1777771846000,-387.372,0.00012,2]
[421503742,1777771846000,-1980.16309526,0.00012,2]
[421503743,1777771846000,-733.13076346,0.00012,2]
[421503756,1777771846000,-150.0,0.00013951,2]
[421503773,1777771846000,-500.0,0.00014343,2]
[421503761,1777771846000,-150.0,0.00014134,2]
[421503776,1777771846000,-500.0,0.00014343,2]
[421503772,1777771846000,-500.0,0.00014343,2]
[421503803,1777771846000,-500.0,0.00014425,5]
[421503799,1777771846000,-500.0,0.00014425,5]
[421503802,1777771846000,-500.0,0.00014425,5]
[421503800,1777771846000,-500.0,0.00014425,5]
[421503798,1777771846000,-500.0,0.00014425,5]
[421503801,1777771846000,-500.0,0.00014425,5]
[421503797,1777771846000,-500.0,0.00014425,5]
[421503795,1777771846000,-500.0,0.00014425,5]
[421503796,1777771846000,-500.0,0.00014425,5]
[421503793,1777771846000,-500.0,0.00014425,5]
[421503791,1777771846000,-500.0,0.00014425,5]
[421503794,1777771846000,-500.0,0.00014425,5]
[421503789,1777771846000,-500.0,0.00014425,5]
[421503790,1777771846000,-500.0,0.00014425,5]
[421503785,1777771846000,-150.0,0.0001441,2]
[421503787,1777771846000,-500.0,0.00014425,5]
[421503775,1777771846000,-500.0,0.00014343,2]
[421503769,1777771846000,-300.0,0.000143,2]
[421503777,1777771846000,-500.0,0.00014343,2]
[421503778,1777771846000,-500.0,0.00014343,2]
[421503779,1777771846000,-500.0,0.00014343,2]
[421503774,1777771846000,-500.0,0.00014343,2]
[421503780,1777771846000,-500.0,0.00014343,2]
[421503781,1777771846000,-512.42868356,0.00014343,2]
[421503782,1777771846000,-150.0,0.00014343,2]
[421503784,1777771846000,-166.66,0.00014384,2]
[421503788,1777771846000,-500.0,0.00014425,5]
[421503783,1777771846000,-166.9261286,0.00014343,2]
[421503786,1777771846000,-500.0,0.00014425,5]
[421503844,1777771847000,-269.04465205,0.00014685,2]
[421503846,1777771847000,-500.0,0.00014691,2]
[421503836,1777771847000,-500.0,0.00014617,2]
[421503834,1777771847000,-500.0,0.00014617,2]
[421503837,1777771847000,-373.34031206,0.00014617,2]
[421503839,1777771847000,-195.36173631,0.00014685,2]
[421503841,1777771847000,-226.9012939,0.00014685,2]
[421503833,1777771847000,-500.0,0.00014617,2]
[421503838,1777771847000,-150.0,0.00014685,2]
[421503840,1777771847000,-150.0,0.00014685,2]
[421503850,1777771847000,-151.0,0.00014691,2]
[421503848,1777771847000,-151.0,0.00014691,2]
[421503849,1777771847000,-151.0,0.00014691,2]
[421503842,1777771847000,-183.33829652,0.00014685,2]
[421503847,1777771847000,-151.0,0.00014691,2]
[421503843,1777771847000,-150.0,0.00014685,2]
[421503845,1777771847000,-200.0,0.00014691,2]
[421503852,1777771847000,-151.0,0.00014691,2]
[421503863,1777771847000,-151.0,0.00014691,2]
[421503864,1777771847000,-151.0,0.00014691,2]
[421503832,1777771847000,-500.0,0.00014617,2]
[421503851,1777771847000,-151.0,0.00014691,2]
[421503835,1777771847000,-500.0,0.00014617,2]
[421503809,1777771847000,-500.0,0.00014425,5]
[421503827,1777771847000,-500.0,0.00014617,2]
[421503804,1777771847000,-447.58842795,0.00014425,5]
[421503816,1777771847000,-3157.88,0.00014431,2]
[421503815,1777771847000,-151.53031816,0.00014425,5]
[421503805,1777771847000,-500.0,0.00014425,5]
[421503806,1777771847000,-500.0,0.00014425,5]
[421503813,1777771847000,-500.0,0.00014425,5]
[421503807,1777771847000,-258.642693,0.00014425,5]
[421503812,1777771847000,-500.0,0.00014425,5]
[421503811,1777771847000,-500.0,0.00014425,5]
[421503855,1777771847000,-151.0,0.00014691,2]
[421503826,1777771847000,-5000.0,0.000146,2]
[421503810,1777771847000,-217.42189229,0.00014425,5]
[421503818,1777771847000,-150.0,0.00014501,2]
[421503829,1777771847000,-500.0,0.00014617,2]
[421503830,1777771847000,-500.0,0.00014617,2]
[421503831,1777771847000,-500.0,0.00014617,2]
[421503822,1777771847000,-1004.65007826,0.00014575,2]
[421503820,1777771847000,-251.4139335,0.00014575,2]
[421503823,1777771847000,-150.0,0.00014593,2]
[421503824,1777771847000,-5636.97451873,0.000146,2]
[421503825,1777771847000,-2500.0,0.000146,2]
[421503828,1777771847000,-500.0,0.00014617,2]
[421503808,1777771847000,-500.0,0.00014425,5]
[421503854,1777771847000,-162.80527572,0.00014691,2]
[421503853,1777771847000,-151.0,0.00014691,2]
[421503857,1777771847000,-151.0,0.00014691,2]
[421503887,1777771847000,-250.0,0.00014699,2]
[421503879,1777771847000,-666.0,0.00014699,2]
[421503889,1777771847000,-60344.7451,0.000147,2]
[421503878,1777771847000,-666.0,0.00014699,2]
[421503886,1777771847000,-163.42420167,0.00014699,2]
[421503885,1777771847000,-1000.0,0.00014699,2]
[421503904,1777771847000,-300.0,0.00014999,2]
[421503903,1777771847000,-173.16821688,0.0001499,2]
[421503893,1777771847000,-3018.1368379,0.00014866,2]
[421503905,1777771847000,-666.0,0.00014999,2]
[421503891,1777771847000,-3157.88,0.00014767,2]
[421503892,1777771847000,-11068.6524858,0.00014866,2]
[421503894,1777771847000,-3545.1157913,0.00014866,2]
[421503895,1777771847000,-3773.1356,0.00014877,2]
[421503896,1777771847000,-192.68467151,0.00014899,2]
[421503899,1777771847000,-214.35885658,0.000149,2]
[421503901,1777771847000,-700.0,0.00014937,2]
[421503902,1777771847000,-500.0,0.00014973,5]
[421503856,1777771847000,-500.0,0.00014691,2]
[421503898,1777771847000,-5200.86698723,0.000149,2]
[421503906,1777771847000,-379411.86954071,0.00015,2]
[421503907,1777771847000,-37145.68593164,0.00015,2]
[421503897,1777771847000,-262.0,0.00014899,2]
[421503883,1777771847000,-1000.0,0.00014699,2]
[421503900,1777771847000,-2776.54814677,0.000149,2]
[421503881,1777771847000,-1000.0,0.00014699,2]
[421503858,1777771847000,-397.77718481,0.00014691,2]
[421503860,1777771847000,-151.0,0.00014691,2]
[421503859,1777771847000,-151.0,0.00014691,2]
[421503862,1777771847000,-151.0,0.00014691,2]
[421503861,1777771847000,-151.0,0.00014691,2]
[421503866,1777771847000,-151.0,0.00014691,2]
[421503874,1777771847000,-151.0,0.00014691,2]
[421503877,1777771847000,-300.0,0.00014699,2]
[421503882,1777771847000,-1000.0,0.00014699,2]
[421503876,1777771847000,-1108.99789053,0.00014699,5]
[421503865,1777771847000,-151.0,0.00014691,2]
[421503875,1777771847000,-500.0,0.00014699,5]
[421503868,1777771847000,-151.0,0.00014691,2]
[421503888,1777771847000,-306.68087323,0.00014699,2]
[421503867,1777771847000,-151.0,0.00014691,2]
[421503880,1777771847000,-1000.0,0.00014699,2]
[421503890,1777771847000,-1500000.0,0.000147,2]
[421503884,1777771847000,-1000.0,0.00014699,2]
[421503871,1777771847000,-151.0,0.00014691,2]
[421503869,1777771847000,-151.0,0.00014691,2]
[421503873,1777771847000,-151.0,0.00014691,2]
[421503872,1777771847000,-151.0,0.00014691,2]
[421503870,1777771847000,-151.0,0.00014691,2]
[421503910,1777772398000,176.83814148,0.00030137,120]
[421503911,1777772426000,118607.0,0.00030136,120]
[421503912,1777772605000,198.536254,0.00029534,120]
[421503913,1777772695000,198.536254,0.0002744,120]
[421503914,1777772958000,-203.97,0.000118,2]
[421503916,1777772958000,-171.35941295,0.00013019,2]
[421503915,1777772958000,-155.09239113,0.00013019,2]
[421503920,1777772958000,-155.38134839,0.00013019,2]
[421503919,1777772958000,-150.60472304,0.00013019,2]
[421503917,1777772958000,-153.31571729,0.00013019,2]
[421503918,1777772958000,-190.74359269,0.00013019,2]
[421503939,1777773032000,-150.0,0.00013742,2]
[421503941,1777773032000,-150.0,0.00013903,2]
[421503942,1777773032000,-150.0,0.00013984,2]
[421503947,1777773032000,-306.97584822,0.0001418,2]
[421503948,1777773032000,-500.91157275,0.0001418,2]
[421503945,1777773032000,-1200.0,0.00014179,2]
[421503944,1777773032000,-150.0,0.00014144,2]
[421503946,1777773032000,-1187.39723945,0.0001418,2]
[421503950,1777773032000,-141.81366042,0.0001418,2]
[421503949,1777773032000,-158.18633958,0.0001418,2]
[421503953,1777773032000,-150.0,0.00014305,2]
[421503952,1777773032000,-150.0,0.00014225,2]
[421503943,1777773032000,-150.0,0.00014064,2]
[421503940,1777773032000,-150.0,0.00013823,2]
[421503933,1777773032000,-150.0,0.00013341,2]
[421503936,1777773032000,-49.31255803,0.00013501,2]
[421503935,1777773032000,-100.68744197,0.00013501,2]
[421503937,1777773032000,-150.0,0.00013582,2]
[421503932,1777773032000,-150.0,0.0001326,2]
[421503929,1777773032000,-7.54654541,0.000131,2]
[421503931,1777773032000,-150.0,0.0001318,2]
[421503930,1777773032000,-142.45345459,0.000131,2]
[421503938,1777773032000,-150.0,0.00013662,2]
[421503928,1777773032000,-150.0,0.00013019,2]
[421503955,1777773032000,-300.0,0.00014321,2]
[421503927,1777773032000,-150.0,0.00013019,2]
[421503925,1777773032000,-0.55122366,0.00013019,2]
[421503926,1777773032000,-154.09539085,0.00013019,2]
[421503934,1777773032000,-150.0,0.00013421,2]
[421503951,1777773032000,-43.37733958,0.0001418,2]
[421503993,1777773032000,-173.18176973,0.00014468,2]
[421503956,1777773032000,-2008.19577306,0.00014359,2]
[421503954,1777773032000,-300.0,0.00014321,2]
[421503998,1777773032000,-250.0,0.00014469,2]
[421504001,1777773032000,-68627.5627635,0.00014469,2]
[421503999,1777773032000,-179.0,0.00014469,2]
[421503997,1777773032000,-226.8015486,0.00014468,2]
[421504002,1777773032000,-322.59321388,0.00014469,2]
[421504000,1777773032000,-179.34661199,0.00014469,2]
[421503991,1777773032000,-500.0,0.00014468,2]
[421503979,1777773032000,-202.02219804,0.0001446,2]
[421503974,1777773032000,-166.77,0.00014433,2]
[421503977,1777773032000,-193.04532123,0.00014459,2]
[421503971,1777773032000,-500.0,0.00014399,2]
[421503989,1777773032000,-334.76431878,0.00014468,2]
[421503981,1777773032000,-174.61919141,0.0001446,2]
[421503995,1777773032000,-500.0,0.00014468,2]
[421503983,1777773032000,-154.26212048,0.00014466,2]
[421503985,1777773032000,-166.76129703,0.00014466,2]
[421503972,1777773032000,-216.31558332,0.00014399,2]
[421503964,1777773032000,-2069.58471946,0.00014369,2]
[421503968,1777773032000,-150.0,0.00014385,2]
[421503970,1777773032000,-209.09820912,0.00014399,2]
[421503963,1777773032000,-3307.16045395,0.00014369,2]
[421503969,1777773032000,-500.0,0.00014399,2]
[421503967,1777773032000,-2500.0,0.00014369,2]
[421503959,1777773032000,-6471.48691659,0.00014369,2]
[421503965,1777773032000,-98914.211,0.00014369,2]
[421503961,1777773032000,-3307.91860804,0.00014369,2]
[421503987,1777773032000,-625.40593045,0.00014468,2]
[421503958,1777773032000,-150.0,0.00014368,2]
[421504020,1777773038000,-85632.65364148,0.00014469,2]
[421504023,1777773038000,-903.93718342,0.00014469,2]
[421504021,1777773038000,-30231.85516234,0.00014469,2]
[421504024,1777773038000,-943.95867498,0.00014469,2]
[421504022,1777773038000,-473.62896051,0.00014469,2]
[421504035,1777773040000,-8943.78386462,0.00014469,2]
[421504029,1777773040000,-200.0,0.00014225,2]
[421504031,1777773040000,-260.32798009,0.00014469,2]
[421504030,1777773040000,-134.08,0.00014469,2]
[421504032,1777773040000,-350.33533698,0.00014469,2]
[421504033,1777773040000,-8854.03534562,0.00014469,2]
[421504034,1777773040000,-8947.21879473,0.00014469,2]
[421504037,1777773040000,-1902.07,0.00014469,2]
[421504038,1777773040000,-12448.89564265,0.00014469,2]
[421504040,1777773040000,-430.4257349,0.00014469,2]
[421504039,1777773040000,-892.18335078,0.00014469,2]
[421504041,1777773040000,-519.56113632,0.00014469,2]
[421504043,1777773040000,-5186.96950047,0.00014469,2]
[421504042,1777773040000,-2410.0,0.00014469,2]
[421504044,1777773040000,-312.18304216,0.00014469,2]
[421504036,1777773040000,-9077.54866152,0.00014469,2]
[421504045,1777773040000,-4794.51156237,0.00014469,2]
[421504051,1777773042000,-2603.83148825,0.00014469,2]
[421504052,1777773042000,-1830.25499526,0.00014469,2]
[421504054,1777773042000,-1265.06862655,0.00014469,2]
[421504055,1777773042000,-308.5174995,0.00014469,2]
[421504053,1777773042000,-5577.95885751,0.00014469,2]
[421504111,1777773043000,-9167.64423464,0.00014469,2]
[421504113,1777773043000,-93569.06285443,0.00014469,2]
[421504112,1777773043000,-2000.64165381,0.00014469,2]
[421504110,1777773043000,-82703.52106598,0.00014469,2]
[421504114,1777773044000,-27735.04881696,0.00014469,2]
[421504115,1777773044000,-970.18063068,0.00014469,2]
[421504146,1777773046000,-500.0,0.00014368,2]
[421504148,1777773046000,-255.99592044,0.00014368,2]
[421504147,1777773046000,-71.82945458,0.00014368,2]
[421504151,1777773046000,-500.0,0.00014368,2]
[421504149,1777773046000,-172.17462498,0.00014368,2]
[421504150,1777773046000,-500.0,0.00014368,2]
[421504153,1777773046000,-9415.60332949,0.00014469,2]
[421504155,1777773046000,-338.89006486,0.00014368,2]
[421504152,1777773046000,-500.0,0.00014368,2]
[421504154,1777773046000,-15641.90911195,0.00014469,2]
[421504159,1777773047000,-999.0,0.00014469,2]
[421504157,1777773047000,-436112.88654163,0.00014469,2]
[421504156,1777773047000,-161.10993514,0.00014368,2]
[421504162,1777773103000,184.138308,0.0002744,120]
[421504163,1777773250000,155.0,0.00030136,120]
[421504164,1777773268000,2099.825498,0.00026849,120]
[421504165,1777773323000,231.22811,0.00026852,120]
[421504166,1777773493000,899.925212,0.00029596,120]
[421504167,1777773586000,242.056691,0.00026852,120]
[421504169,1777773679000,178.0,0.00029987,120]
[421504170,1777773709000,168.735977,0.00026852,120]
[421504171,1777773729000,188.91,6.803e-05,2]
[421504172,1777773883000,289.764323,0.00026852,120]
[421504173,1777774008000,196.858641,0.00026852,120]
[421504174,1777774200000,1024.0,0.00030136,120]
[421504197,1777774232000,-300.0,0.00014167,2]
[421504203,1777774232000,-2107.55971911,0.00014169,2]
[421504198,1777774232000,-6295.66897392,0.00014169,2]
[421504201,1777774232000,-1986.96510012,0.00014169,2]
[421504205,1777774232000,-2500.0,0.00014169,2]
[421504200,1777774232000,-580.86479017,0.00014169,2]
[421504199,1777774232000,-7816.19740335,0.00014169,2]
[421504219,1777774232000,-260.03248731,0.00014268,2]
[421504207,1777774232000,-218.91193567,0.00014259,2]
[421504209,1777774232000,-501.23048843,0.0001426,2]
[421504208,1777774232000,-170.88743608,0.00014259,2]
[421504210,1777774232000,-150.0,0.00014267,2]
[421504211,1777774232000,-500.0,0.00014268,2]
[421504194,1777774232000,-4056.88229464,0.00013965,2]
[421504202,1777774232000,-905.47518077,0.00014169,2]
[421504195,1777774232000,-150.0,0.00013997,2]
[421504183,1777774232000,-500.0,0.00013298,2]
[421504193,1777774232000,-785.92,0.00013844,2]
[421504179,1777774232000,-150.0,0.00012921,2]
[421504180,1777774232000,-150.00000001,0.00012921,2]
[421504178,1777774232000,-150.0,0.00012921,2]
[421504181,1777774232000,-150.0,0.00012921,2]
[421504182,1777774232000,-150.0,0.00013279,2]
[421504184,1777774232000,-1000.0,0.00013298,2]
[421504196,1777774232000,-300.0,0.00014167,2]
[421504185,1777774232000,-152.32,0.00013323,2]
[421504189,1777774232000,-163.08,0.0001363,2]
[421504186,1777774232000,-218.70594517,0.00013462,2]
[421504188,1777774232000,-199.2798,0.00013562,2]
[421504191,1777774232000,-1200.0,0.00013698,2]
[421504187,1777774232000,-1494.689381,0.00013494,2]
[421504192,1777774232000,-200.0,0.00013699,2]
[421504190,1777774232000,-150.0,0.00013638,2]
[421504220,1777774232000,-126.32177892,0.00014268,2]
[421504249,1777774232000,-500.0,0.00014268,2]
[421504217,1777774232000,-250.0,0.00014268,2]
[421504246,1777774232000,-500.0,0.00014268,2]
[421504247,1777774232000,-500.0,0.00014268,2]
[421504248,1777774232000,-500.0,0.00014268,2]
[421504250,1777774232000,-500.0,0.00014268,2]
[421504252,1777774232000,-500.0,0.00014268,2]
[421504251,1777774232000,-500.0,0.00014268,2]
[421504245,1777774232000,-500.0,0.00014268,2]
[421504254,1777774232000,-500.0,0.00014268,2]
[421504255,1777774232000,-269.56123805,0.00014268,2]
[421504256,1777774232000,-500.0,0.00014268,2]
[421504257,1777774232000,-500.0,0.00014268,2]
[421504258,1777774232000,-603.26137104,0.00014268,2]
[421504260,1777774232000,-398.96109878,0.00014268,2]
[421504259,1777774232000,-188.69286663,0.00014268,2]
[421504213,1777774232000,-1722.777,0.00014268,2]
[421504242,1777774232000,-500.0,0.00014268,2]
[421504253,1777774232000,-500.0,0.00014268,2]
[421504243,1777774232000,-500.0,0.00014268,2]
[421504218,1777774232000,-113.64573377,0.00014268,2]
[421504224,1777774232000,-585.42708632,0.00014268,2]
[421504222,1777774232000,-500.0,0.00014268,2]
[421504226,1777774232000,-500.0,0.00014268,2]
[421504230,1777774232000,-500.0,0.00014268,2]
[421504237,1777774232000,-500.0,0.00014268,2]
[421504232,1777774232000,-500.0,0.00014268,2]
[421504215,1777774232000,-185.191,0.00014268,2]
[421504238,1777774232000,-579.78497112,0.00014268,2]
[421504239,1777774232000,-500.0,0.00014268,2]
[421504241,1777774232000,-500.0,0.00014268,2]
[421504228,1777774232000,-308.24032782,0.00014268,2]
[421504240,1777774232000,-500.0,0.00014268,2]
[421504234,1777774232000,-500.0,0.00014268,2]
[421504244,1777774232000,-500.0,0.00014268,2]
[421504262,1777774233000,-3350.11075277,0.00014269,2]
[421504261,1777774233000,-255.99592044,0.00014268,2]
[421504263,1777774233000,-268.45620438,0.00014269,2]
[421504265,1777774233000,-437.436765,0.00014269,2]
[421504266,1777774233000,-699.29318587,0.00014269,2]
[421504267,1777774233000,-470190.45322853,0.00014269,2]
[421504264,1777774233000,-2349.99999995,0.00014269,2]
[421504285,1777774238000,-998.33927239,0.00014269,2]
[421504284,1777774238000,-1108.13607521,0.00014269,2]
[421504283,1777774238000,-409.36336787,0.00014269,2]
[421504282,1777774238000,-5179.20770353,0.00014269,2]
[421504281,1777774238000,-3911.7,0.00014269,2]
[421504352,1777774240000,-7805.0,0.00014269,2]
[421504353,1777774241000,-702.76817423,0.00014269,2]
[421504355,1777774241000,-405.26152993,0.00014269,2]
[421504354,1777774241000,-342.108,0.00014269,2]
[421504362,1777774243000,-50.03914955,0.00014269,2]
[421504361,1777774243000,-693.0,0.00014269,2]
[421504363,1777774243000,-21943.39881,0.00014269,2]
[421504364,1777774243000,-1048.0,0.00014269,2]
[421504366,1777774243000,-47127.99905999,0.00014269,2]
[421504367,1777774243000,-7252.0992864,0.00014269,2]
[421504365,1777774243000,-603.0,0.00014269,2]
[421504370,1777774243000,-979.16666667,0.00014269,2]
[421504368,1777774243000,-10800.0,0.00014269,2]
[421504371,1777774243000,-351.012724,0.00014269,2]
[421504369,1777774243000,-937.70955075,0.00014269,2]
[421504379,1777774246000,-7117.18088192,0.00014269,2]
[421504377,1777774246000,-3004.53071096,0.00014269,2]
[421504378,1777774246000,-1349.7868,0.00014269,2]
[421504384,1777774594000,172.09,6.808e-05,2]
[421504388,1777775356000,-1054.69394108,0.00013396,2]
[421504386,1777775356000,-250.0,0.00013,2]
[421504387,1777775356000,-792.07,0.00013381,2]
[421504392,1777775431000,-1360.11109842,0.00012,2]
[421504394,1777775431000,-281.51955281,0.00012,2]
[421504393,1777775431000,-500.0,0.00011999,2]
[421504395,1777775431000,-501.52740981,0.00012,2]
[421504399,1777775431000,-2819.77029272,0.00012,2]
[421504396,1777775431000,-500.0,0.00011999,2]
[421504398,1777775431000,-500.0,0.00011999,2]
[421504400,1777775431000,-489.81670469,0.00012,2]
[421504401,1777775431000,-12847.98247686,0.00012,2]
[421504397,1777775431000,-77600.99999998,0.00012,2]
[421504424,1777775437000,-396.97378588,0.00012,2]
[421504421,1777775437000,-545.02413532,0.00011999,2]
[421504422,1777775437000,-16118.36303468,0.00012,2]
[421504423,1777775437000,-618.6790189,0.00012,2]
[421504425,1777775437000,-2084.27888896,0.00012,2]
[421504427,1777775437000,-591.21790785,0.00012,2]
[421504432,1777775437000,-1000.0,0.00012,2]
[421504426,1777775437000,-1703.18696918,0.00012,2]
[421504429,1777775437000,-14619.42564278,0.00012,2]
[421504431,1777775437000,-2468.49629249,0.00012,2]
[421504430,1777775437000,-496.19290314,0.00012,2]
[421504428,1777775437000,-385.05272,0.00012,2]
[421504433,1777775438000,-2041.44350403,0.00012,2]
[421504511,1777775440000,-792.07,0.0001405,2]
[421504509,1777775440000,-166.66,0.00013778,2]
[421504506,1777775440000,-150.0,0.00013488,2]
[421504505,1777775440000,-150.00000001,0.00013488,2]
[421504507,1777775440000,-173.46,0.00013699,2]
[421504503,1777775440000,-150.88266779,0.00013488,2]
[421504508,1777775440000,-792.07,0.00013716,2]
[421504514,1777775440000,-1277.4452,0.00014069,2]
[421504504,1777775440000,-164.96627634,0.00013488,2]
[421504502,1777775440000,-150.0,0.00013488,2]
[421504500,1777775440000,-150.00000001,0.00013488,2]
[421504499,1777775440000,-300.0,0.00013487,2]
[421504497,1777775440000,-86589.62585522,0.00012,2]
[421504498,1777775440000,-4493.26605892,0.00013396,2]
[421504501,1777775440000,-150.0,0.00013488,2]
[421504510,1777775440000,-474.19,0.00013826,2]
[421504524,1777775440000,-272.28295973,0.00014168,2]
[421504512,1777775440000,-7034.57766297,0.00014069,2]
[421504530,1777775440000,-16339.72992309,0.00014169,2]
[421504528,1777775440000,-2190.3681756,0.00014169,2]
[421504529,1777775440000,-401.70450948,0.00014169,2]
[421504513,1777775440000,-508.25669139,0.00014069,2]
[421504523,1777775440000,-500.0,0.00014168,2]
[421504526,1777775440000,-150116.11637372,0.00014169,2]
[421504521,1777775440000,-279.27276914,0.00014168,2]
[421504527,1777775440000,-841.34077467,0.00014169,2]
[421504520,1777775440000,-500.0,0.00014168,2]
[421504522,1777775440000,-500.0,0.00014168,2]
[421504516,1777775440000,-5000.0,0.00014069,2]
[421504515,1777775440000,-2500.0,0.00014069,2]
[421504518,1777775440000,-218.91193567,0.00014159,2]
[421504517,1777775440000,-474.19,0.000141,2]
[421504519,1777775440000,-250.0,0.00014168,2]
[421504525,1777775440000,-459.79896042,0.00014168,2]
[421504549,1777775443000,-335.04991627,0.00014169,2]
[421504548,1777775443000,-161731.30492401,0.00014169,2]
[421504547,1777775443000,-745875.58895476,0.00014169,2]
[421504557,1777775445000,-1500.0,0.00014169,2]
[421504556,1777775445000,-6033.51219057,0.00014169,2]
[421504555,1777775445000,-7705.14550579,0.00014169,2]
[421504559,1777775446000,-18019.05712549,0.00014169,2]
[421504558,1777775446000,-350.625,0.00014169,2]
[421504561,1777775446000,-2885.32216457,0.00014169,2]
[421504562,1777775446000,-1376.36985957,0.00014169,2]
[421504564,1777775446000,-286.4859854,0.00014169,2]
[421504560,1777775446000,-25928.14768824,0.00014169,2]
[421504563,1777775446000,-47892.81090496,0.00014169,2]
[421504571,1777775462000,2431.364797,0.00029596,120]